[Event "Titled Tuesday Blitz November 14 Late 2023"]
[White "Gimenez Aguirre, Alejo Ismael"]
[Black "Chigaev, Maksim"]
[WhiteFideId "32041667"]
[BlackFideId "4108116"]
[WhiteElo "2625"]
[BlackElo "2934"]
[Result "0-1"]
[Round "8"]
[TimeControl "180+1"]
[Date "2023.11.14"]
[WhiteClock "0:00:02"]
[BlackClock "0:00:11"]
[Board "12"]

1. e4 {[%clk 0:02:58]}  e6 {[%clk 0:02:59]} 2. d4 {[%clk 0:02:57]}  d5 {[%clk 0:03:00]} 3. Nd2 {[%clk 0:02:58]}  c5 {[%clk 0:03:00]} 4. Ngf3 {[%clk 0:02:58]}  cxd4 {[%clk 0:02:59]} 5. Nxd4 {[%clk 0:02:58]}  Nf6 {[%clk 0:03:00]} 6. exd5 {[%clk 0:02:58]}  Qxd5 {[%clk 0:03:00]} 7. N2f3 {[%clk 0:02:55]}  Be7 {[%clk 0:02:53]} 8. Bb5+ {[%clk 0:02:52]}  Bd7 {[%clk 0:02:50]} 9. Bxd7+ {[%clk 0:02:50]}  Nbxd7 {[%clk 0:02:50]} 10. O-O {[%clk 0:02:51]}  O-O {[%clk 0:02:50]} 11. b3 {[%clk 0:02:51]}  b5 {[%clk 0:02:41]} 12. Bb2 {[%clk 0:02:48]}  a6 {[%clk 0:02:28]} 13. Qe2 {[%clk 0:02:24]}  Qe4 {[%clk 0:02:21]} 14. Qd2 {[%clk 0:02:21]}  Rac8 {[%clk 0:02:16]} 15. Rfe1 {[%clk 0:02:17]}  Qg4 {[%clk 0:02:09]} 16. h3 {[%clk 0:02:16]}  Qh5 {[%clk 0:02:09]} 17. Rac1 {[%clk 0:02:14]}  Rfd8 {[%clk 0:02:04]} 18. Qa5 {[%clk 0:02:02]}  Nc5 {[%clk 0:01:38]} 19. Re5 {[%clk 0:01:49]}  Qh6 {[%clk 0:01:38]} 20. Nf5 {[%clk 0:01:42]}  exf5 {[%clk 0:01:39]} 21. Rxe7 {[%clk 0:01:43]}  Nfe4 {[%clk 0:01:18]} 22. Re1 {[%clk 0:01:36]}  Qd6 {[%clk 0:01:09]} 23. Ra7 {[%clk 0:01:33]}  Re8 {[%clk 0:00:56]} 24. Nd4 {[%clk 0:01:31]}  Qf4 {[%clk 0:00:46]} 25. Nf3 {[%clk 0:01:30]}  h6 {[%clk 0:00:39]} 26. b4 {[%clk 0:01:30]}  Na4 {[%clk 0:00:35]} 27. Bd4 {[%clk 0:01:27]}  Ng5 {[%clk 0:00:27]} 28. Rxe8+ {[%clk 0:01:20]}  Rxe8 {[%clk 0:00:27]} 29. Qc7 {[%clk 0:01:02]}  Nxf3+ {[%clk 0:00:27]} 30. gxf3 {[%clk 0:01:02]}  Qxc7 {[%clk 0:00:16]} 31. Rxc7 {[%clk 0:01:02]}  f4 {[%clk 0:00:13]} 32. Rc6 {[%clk 0:00:58]}  Re2 {[%clk 0:00:13]} 33. Rxa6 {[%clk 0:00:55]}  Rxc2 {[%clk 0:00:13]} 34. Ra5 {[%clk 0:00:55]}  Rc4 {[%clk 0:00:11]} 35. Be5 {[%clk 0:00:50]}  Rxb4 {[%clk 0:00:11]} 36. Ra8+ {[%clk 0:00:50]}  Kh7 {[%clk 0:00:11]} 37. Ra7 {[%clk 0:00:51]}  Kg6 {[%clk 0:00:11]} 38. Ra6+ {[%clk 0:00:51]}  f6 {[%clk 0:00:12]} 39. Bd6 {[%clk 0:00:50]}  Rb1+ {[%clk 0:00:08]} 40. Kg2 {[%clk 0:00:50]}  Nc3 {[%clk 0:00:05]} 41. Bxf4 {[%clk 0:00:43]}  Rb2 {[%clk 0:00:05]} 42. Be5 {[%clk 0:00:36]}  Rxa2 {[%clk 0:00:05]} 43. Rb6 {[%clk 0:00:36]}  Nd1 {[%clk 0:00:05]} 44. Bg3 {[%clk 0:00:35]}  Ne3+ {[%clk 0:00:04]} 45. Kg1 {[%clk 0:00:30]}  Nf5 {[%clk 0:00:04]} 46. Rxb5 {[%clk 0:00:28]}  Nd4 {[%clk 0:00:05]} 47. Rb4 {[%clk 0:00:22]}  Nxf3+ {[%clk 0:00:05]} 48. Kg2 {[%clk 0:00:23]}  Ne1+ {[%clk 0:00:05]} 49. Kf1 {[%clk 0:00:23]}  Nd3 {[%clk 0:00:05]} 50. Rg4+ {[%clk 0:00:23]}  Kf7 {[%clk 0:00:05]} 51. Rd4 {[%clk 0:00:23]}  Ra1+ {[%clk 0:00:06]} 52. Ke2 {[%clk 0:00:22]}  Nc5 {[%clk 0:00:04]} 53. Rc4 {[%clk 0:00:22]}  Ra2+ {[%clk 0:00:05]} 54. Kf3 {[%clk 0:00:22]}  Ne6 {[%clk 0:00:06]} 55. h4 {[%clk 0:00:22]}  h5 {[%clk 0:00:06]} 56. Rb4 {[%clk 0:00:22]}  Ra3+ {[%clk 0:00:06]} 57. Kg2 {[%clk 0:00:22]}  Ra5 {[%clk 0:00:07]} 58. Rb7+ {[%clk 0:00:21]}  Kg6 {[%clk 0:00:07]} 59. Rb6 {[%clk 0:00:22]}  Nd4 {[%clk 0:00:07]} 60. Rb4 {[%clk 0:00:22]}  Nf5 {[%clk 0:00:07]} 61. Rb7 {[%clk 0:00:20]}  Rd5 {[%clk 0:00:08]} 62. Rb4 {[%clk 0:00:20]}  Rd4 {[%clk 0:00:07]} 63. Rb5 {[%clk 0:00:20]}  Nxh4+ {[%clk 0:00:06]} 64. Kh3 {[%clk 0:00:19]}  Nf5 {[%clk 0:00:07]} 65. Bc7 {[%clk 0:00:18]}  Rc4 {[%clk 0:00:07]} 66. Bd8 {[%clk 0:00:17]}  Rc3+ {[%clk 0:00:07]} 67. Kg2 {[%clk 0:00:18]}  Rd3 {[%clk 0:00:07]} 68. Bb6 {[%clk 0:00:17]}  Nh4+ {[%clk 0:00:08]} 69. Kf1 {[%clk 0:00:17]}  Rd7 {[%clk 0:00:06]} 70. Rb4 {[%clk 0:00:16]}  Rb7 {[%clk 0:00:04]} 71. Rxh4 {[%clk 0:00:11]}  Rxb6 {[%clk 0:00:05]} 72. Kg2 {[%clk 0:00:12]}  Rb1 {[%clk 0:00:05]} 73. Rd4 {[%clk 0:00:12]}  Rb5 {[%clk 0:00:06]} 74. Rd3 {[%clk 0:00:12]}  Kh6 {[%clk 0:00:06]} 75. Kg3 {[%clk 0:00:11]}  Rg5+ {[%clk 0:00:06]} 76. Kf3 {[%clk 0:00:11]}  Rf5+ {[%clk 0:00:06]} 77. Kg3 {[%clk 0:00:11]}  g5 {[%clk 0:00:07]} 78. Rd8 {[%clk 0:00:12]}  h4+ {[%clk 0:00:07]} 79. Kg2 {[%clk 0:00:12]}  Rf4 {[%clk 0:00:06]} 80. f3 {[%clk 0:00:11]}  Kg6 {[%clk 0:00:07]} 81. Rg8+ {[%clk 0:00:11]}  Kf5 {[%clk 0:00:07]} 82. Ra8 {[%clk 0:00:12]}  Rb4 {[%clk 0:00:07]} 83. Ra2 {[%clk 0:00:12]}  Kf4 {[%clk 0:00:07]} 84. Re2 {[%clk 0:00:13]}  f5 {[%clk 0:00:08]} 85. Rf2 {[%clk 0:00:11]}  Rb3 {[%clk 0:00:07]} 86. Rc2 {[%clk 0:00:07]}  h3+ {[%clk 0:00:08]} 87. Kxh3 {[%clk 0:00:06]}  Rxf3+ {[%clk 0:00:08]} 88. Kg2 {[%clk 0:00:06]}  g4 {[%clk 0:00:09]} 89. Rc4+ {[%clk 0:00:06]}  Kg5 {[%clk 0:00:09]} 90. Rc2 {[%clk 0:00:07]}  Ra3 {[%clk 0:00:10]} 91. Rb2 {[%clk 0:00:07]}  Kh4 {[%clk 0:00:09]} 92. Kh2 {[%clk 0:00:08]}  f4 {[%clk 0:00:09]} 93. Rb4 {[%clk 0:00:08]}  Ra2+ {[%clk 0:00:09]} 94. Kg1 {[%clk 0:00:08]}  Kg3 {[%clk 0:00:10]} 95. Rb1 {[%clk 0:00:08]}  f3 {[%clk 0:00:10]} 96. Kf1 {[%clk 0:00:09]}  Rf2+ {[%clk 0:00:10]} 97. Kg1 {[%clk 0:00:09]}  Rg2+ {[%clk 0:00:10]} 98. Kh1 {[%clk 0:00:09]}  Rh2+ {[%clk 0:00:11]} 99. Kg1 {[%clk 0:00:02]}  f2+ {[%clk 0:00:11]} 0-1


[Site "https://www.chess.com"]

[Event "Titled Tuesday Blitz November 14 Late 2023"]
[White "Zeltsan, Joseph"]
[Black "Ibarra Jerez, Jose Carlos"]
[WhiteFideId "30932980"]
[BlackFideId "2226332"]
[WhiteElo "2725"]
[BlackElo "2952"]
[Result "1-0"]
[Round "8"]
[TimeControl "180+1"]
[Date "2023.11.14"]
[WhiteClock "0:00:04"]
[BlackClock "0:00:02"]
[Board "19"]

1. e4 {[%clk 0:03:00]}  c5 {[%clk 0:02:59]} 2. Nf3 {[%clk 0:02:59]}  Nc6 {[%clk 0:02:59]} 3. Bb5 {[%clk 0:02:58]}  e6 {[%clk 0:02:59]} 4. O-O {[%clk 0:02:59]}  Nd4 {[%clk 0:03:00]} 5. Nxd4 {[%clk 0:02:56]}  cxd4 {[%clk 0:03:01]} 6. c3 {[%clk 0:02:55]}  a6 {[%clk 0:02:58]} 7. Be2 {[%clk 0:02:47]}  Bc5 {[%clk 0:02:57]} 8. b4 {[%clk 0:02:46]}  Ba7 {[%clk 0:02:54]} 9. Bb2 {[%clk 0:02:46]}  Ne7 {[%clk 0:02:51]} 10. cxd4 {[%clk 0:02:45]}  d5 {[%clk 0:02:51]} 11. e5 {[%clk 0:01:56]}  Nf5 {[%clk 0:02:46]} 12. b5 {[%clk 0:01:52]}  O-O {[%clk 0:02:37]} 13. Bd3 {[%clk 0:01:31]}  Nxd4 {[%clk 0:02:26]} 14. Qg4 {[%clk 0:01:23]}  Nxb5 {[%clk 0:02:09]} 15. a4 {[%clk 0:01:20]}  Nc7 {[%clk 0:02:08]} 16. Bxh7+ {[%clk 0:01:07]}  Kxh7 {[%clk 0:01:57]} 17. Qh5+ {[%clk 0:01:08]}  Kg8 {[%clk 0:01:58]} 18. Ra3 {[%clk 0:01:09]}  Ne8 {[%clk 0:01:42]} 19. Rh3 {[%clk 0:00:20]}  f5 {[%clk 0:01:18]} 20. Ba3 {[%clk 0:00:20]}  Nc7 {[%clk 0:00:36]} 21. Qh7+ {[%clk 0:00:13]}  Kf7 {[%clk 0:00:36]} 22. Qh5+ {[%clk 0:00:13]}  Kg8 {[%clk 0:00:35]} 23. Qh7+ {[%clk 0:00:12]}  Kf7 {[%clk 0:00:35]} 24. Rg3 {[%clk 0:00:12]}  Ne8 {[%clk 0:00:27]} 25. Qg6+ {[%clk 0:00:03]}  Kg8 {[%clk 0:00:28]} 26. Rh3 {[%clk 0:00:04]}  Nc7 {[%clk 0:00:25]} 27. Rh7 {[%clk 0:00:03]}  Qd7 {[%clk 0:00:04]} 28. Qh5 {[%clk 0:00:03]}  g6 {[%clk 0:00:02]} 29. Qxg6+ {[%clk 0:00:03]}  Qg7 {[%clk 0:00:02]} 30. Qxg7# {[%clk 0:00:04]} 1-0


[Site "https://www.chess.com"]

[Event "Titled Tuesday Blitz November 14 Late 2023"]
[White "Hasangatin, Ramil"]
[Black "Grischuk, Alexander"]
[WhiteFideId "4122160"]
[BlackFideId "4126025"]
[WhiteElo "2708"]
[BlackElo "2937"]
[Result "1/2-1/2"]
[Round "8"]
[TimeControl "180+1"]
[Date "2023.11.14"]
[WhiteClock "0:01:58"]
[BlackClock "0:01:27"]
[Board "20"]

1. e4 {[%clk 0:03:00]}  c5 {[%clk 0:03:00]} 2. Nf3 {[%clk 0:03:00]}  Nc6 {[%clk 0:02:59]} 3. Bb5 {[%clk 0:03:00]}  e6 {[%clk 0:02:59]} 4. Bxc6 {[%clk 0:02:59]}  bxc6 {[%clk 0:02:59]} 5. d3 {[%clk 0:03:00]}  Qc7 {[%clk 0:02:58]} 6. e5 {[%clk 0:02:58]}  f6 {[%clk 0:02:57]} 7. Qe2 {[%clk 0:02:58]}  fxe5 {[%clk 0:02:52]} 8. Nxe5 {[%clk 0:02:52]}  Nf6 {[%clk 0:02:52]} 9. f4 {[%clk 0:02:49]}  Be7 {[%clk 0:02:44]} 10. O-O {[%clk 0:02:45]}  O-O {[%clk 0:02:44]} 11. Nd2 {[%clk 0:02:42]}  a5 {[%clk 0:02:33]} 12. a4 {[%clk 0:02:40]}  d6 {[%clk 0:02:29]} 13. Nec4 {[%clk 0:02:37]}  Nd5 {[%clk 0:02:21]} 14. Ne4 {[%clk 0:02:37]}  Bd7 {[%clk 0:02:22]} 15. b3 {[%clk 0:02:36]}  Be8 {[%clk 0:02:15]} 16. Bd2 {[%clk 0:02:35]}  Bg6 {[%clk 0:02:14]} 17. Rae1 {[%clk 0:02:33]}  Rfe8 {[%clk 0:02:09]} 18. Ng3 {[%clk 0:02:14]}  Bf8 {[%clk 0:02:09]} 19. Qg4 {[%clk 0:02:08]}  Nf6 {[%clk 0:01:35]} 20. Qf3 {[%clk 0:02:03]}  Nd5 {[%clk 0:01:32]} 21. Re2 {[%clk 0:02:01]}  Nb4 {[%clk 0:01:29]} 22. Bc3 {[%clk 0:01:57]}  Nd5 {[%clk 0:01:27]} 23. Bd2 {[%clk 0:01:58]}  Nb4 {[%clk 0:01:27]} 24. Bc3 {[%clk 0:01:58]}  Nd5 {[%clk 0:01:27]} 25. Bd2 {[%clk 0:01:58]} 1/2-1/2


[Site "https://www.chess.com"]

[Event "Titled Tuesday Blitz November 14 Late 2023"]
[White "Yeletsky, Ivan"]
[Black "Ahmad, Khagan"]
[WhiteFideId "24180327"]
[BlackFideId "13431552"]
[WhiteElo "2899"]
[BlackElo "2644"]
[Result "0-1"]
[Round "8"]
[TimeControl "180+1"]
[Date "2023.11.14"]
[WhiteClock "0:00:03"]
[BlackClock "0:00:02"]
[Board "23"]

1. e4 {[%clk 0:03:00]}  c5 {[%clk 0:02:24]} 2. Nf3 {[%clk 0:03:00]}  d6 {[%clk 0:02:23]} 3. c3 {[%clk 0:02:59]}  Nf6 {[%clk 0:02:23]} 4. Qc2 {[%clk 0:02:59]}  Bg4 {[%clk 0:02:16]} 5. e5 {[%clk 0:02:51]}  Bxf3 {[%clk 0:02:11]} 6. exf6 {[%clk 0:02:45]}  Bc6 {[%clk 0:02:11]} 7. fxg7 {[%clk 0:02:39]}  Bxg7 {[%clk 0:02:09]} 8. Be2 {[%clk 0:02:34]}  Nd7 {[%clk 0:02:07]} 9. O-O {[%clk 0:02:34]}  Rg8 {[%clk 0:02:03]} 10. g3 {[%clk 0:02:33]}  Qa5 {[%clk 0:01:41]} 11. Na3 {[%clk 0:02:21]}  O-O-O {[%clk 0:01:40]} 12. Nc4 {[%clk 0:02:16]}  Qc7 {[%clk 0:01:39]} 13. a4 {[%clk 0:02:08]}  Ne5 {[%clk 0:01:29]} 14. Nxe5 {[%clk 0:02:02]}  Bxe5 {[%clk 0:01:30]} 15. Bf3 {[%clk 0:02:02]}  Bxf3 {[%clk 0:01:19]} 16. Qf5+ {[%clk 0:02:02]}  e6 {[%clk 0:01:20]} 17. Qxf3 {[%clk 0:02:02]}  f5 {[%clk 0:01:18]} 18. d4 {[%clk 0:01:39]}  cxd4 {[%clk 0:01:14]} 19. cxd4 {[%clk 0:01:40]}  Bxd4 {[%clk 0:01:15]} 20. Be3 {[%clk 0:01:38]}  Qb6 {[%clk 0:00:39]} 21. a5 {[%clk 0:01:35]}  Qb4 {[%clk 0:00:39]} 22. a6 {[%clk 0:01:05]}  d5 {[%clk 0:00:15]} 23. Rfd1 {[%clk 0:00:51]}  Bxe3 {[%clk 0:00:12]} 24. Qxe3 {[%clk 0:00:49]}  Qb6 {[%clk 0:00:12]} 25. Qe5 {[%clk 0:00:36]}  Rg4 {[%clk 0:00:04]} 26. b3 {[%clk 0:00:18]}  Re4 {[%clk 0:00:04]} 27. Rac1+ {[%clk 0:00:16]}  Kd7 {[%clk 0:00:03]} 28. Qg7+ {[%clk 0:00:16]}  Kd6 {[%clk 0:00:03]} 29. axb7 {[%clk 0:00:16]}  Re2 {[%clk 0:00:03]} 30. Rf1 {[%clk 0:00:08]}  Rb8 {[%clk 0:00:03]} 31. Qxh7 {[%clk 0:00:03]}  Rxb7 {[%clk 0:00:03]} 32. Qh5 {[%clk 0:00:03]}  Ra2 {[%clk 0:00:02]} 33. Rce1 {[%clk 0:00:04]}  Qd4 {[%clk 0:00:01]} 34. Qg6 {[%clk 0:00:04]}  Re7 {[%clk 0:00:02]} 35. Re3 {[%clk 0:00:03]}  Rb2 {[%clk 0:00:01]} 36. Rfe1 {[%clk 0:00:03]}  Kd7 {[%clk 0:00:01]} 37. h4 {[%clk 0:00:02]}  a5 {[%clk 0:00:01]} 38. h5 {[%clk 0:00:02]}  a4 {[%clk 0:00:01]} 39. h6 {[%clk 0:00:03]}  f4 {[%clk 0:00:00]} 40. gxf4 {[%clk 0:00:03]}  Qxf4 {[%clk 0:00:01]} 41. bxa4 {[%clk 0:00:03]}  Qxf2+ {[%clk 0:00:01]} 42. Kh1 {[%clk 0:00:03]}  Qh2# {[%clk 0:00:02]} 0-1


[Site "https://www.chess.com"]

[Event "Titled Tuesday Blitz November 14 Late 2023"]
[White "reevecanada"]
[Black "BardArtem"]
[WhiteElo "2657"]
[BlackElo "2828"]
[Result "0-1"]
[Round "8"]
[TimeControl "180+1"]
[Date "2023.11.14"]
[WhiteClock "0:00:18"]
[BlackClock "0:00:11"]
[Board "24"]

1. e4 {[%clk 0:03:00]}  e5 {[%clk 0:02:48]} 2. Nf3 {[%clk 0:03:00]}  Nc6 {[%clk 0:02:49]} 3. d4 {[%clk 0:02:59]}  exd4 {[%clk 0:02:48]} 4. Nxd4 {[%clk 0:03:00]}  Bb4+ {[%clk 0:02:49]} 5. c3 {[%clk 0:02:59]}  Bc5 {[%clk 0:02:49]} 6. Nb3 {[%clk 0:02:59]}  Bb6 {[%clk 0:02:49]} 7. c4 {[%clk 0:02:59]}  d6 {[%clk 0:02:42]} 8. Nc3 {[%clk 0:02:59]}  Nf6 {[%clk 0:02:42]} 9. Qe2 {[%clk 0:02:58]}  h6 {[%clk 0:02:34]} 10. Be3 {[%clk 0:02:58]}  O-O {[%clk 0:02:33]} 11. O-O-O {[%clk 0:02:58]}  Re8 {[%clk 0:02:33]} 12. f3 {[%clk 0:02:57]}  Be6 {[%clk 0:02:31]} 13. h4 {[%clk 0:02:55]}  Ne5 {[%clk 0:02:26]} 14. Nd2 {[%clk 0:02:54]}  Nh5 {[%clk 0:02:08]} 15. Qe1 {[%clk 0:02:28]}  Bxe3 {[%clk 0:02:01]} 16. Qxe3 {[%clk 0:02:29]}  Ng3 {[%clk 0:02:02]} 17. Be2 {[%clk 0:02:22]}  Nxh1 {[%clk 0:02:00]} 18. Rxh1 {[%clk 0:02:23]}  c6 {[%clk 0:01:54]} 19. g4 {[%clk 0:02:17]}  Qb6 {[%clk 0:01:51]} 20. Qxb6 {[%clk 0:02:08]}  axb6 {[%clk 0:01:52]} 21. f4 {[%clk 0:02:06]}  Bxg4 {[%clk 0:01:01]} 22. fxe5 {[%clk 0:02:05]}  Bxe2 {[%clk 0:01:01]} 23. Nxe2 {[%clk 0:02:05]}  Rxe5 {[%clk 0:01:00]} 24. Nc3 {[%clk 0:02:01]}  f5 {[%clk 0:00:55]} 25. exf5 {[%clk 0:02:01]}  Rxf5 {[%clk 0:00:56]} 26. Rg1 {[%clk 0:02:01]}  Kh7 {[%clk 0:00:53]} 27. Nde4 {[%clk 0:01:59]}  Rf4 {[%clk 0:00:42]} 28. Nxd6 {[%clk 0:01:58]}  Rxh4 {[%clk 0:00:42]} 29. Nf5 {[%clk 0:01:52]}  Rxc4 {[%clk 0:00:40]} 30. Rxg7+ {[%clk 0:01:51]}  Kh8 {[%clk 0:00:41]} 31. Rxb7 {[%clk 0:01:51]}  h5 {[%clk 0:00:35]} 32. Nd6 {[%clk 0:01:43]}  Rf4 {[%clk 0:00:23]} 33. Rxb6 {[%clk 0:01:38]}  h4 {[%clk 0:00:22]} 34. Rb7 {[%clk 0:01:09]}  h3 {[%clk 0:00:16]} 35. Nf7+ {[%clk 0:01:09]}  Kg8 {[%clk 0:00:12]} 36. Nh6+ {[%clk 0:01:09]}  Kf8 {[%clk 0:00:12]} 37. Rh7 {[%clk 0:00:51]}  h2 {[%clk 0:00:10]} 38. Nf5 {[%clk 0:00:42]}  Rf1+ {[%clk 0:00:05]} 39. Kc2 {[%clk 0:00:42]}  h1=Q {[%clk 0:00:06]} 40. Rxh1 {[%clk 0:00:43]}  Rxh1 {[%clk 0:00:07]} 41. Nd4 {[%clk 0:00:43]}  Rh2+ {[%clk 0:00:07]} 42. Kc1 {[%clk 0:00:42]}  Re8 {[%clk 0:00:07]} 43. Nc2 {[%clk 0:00:39]}  Kg8 {[%clk 0:00:05]} 44. a4 {[%clk 0:00:36]}  Rf8 {[%clk 0:00:05]} 45. Ne3 {[%clk 0:00:34]}  Rf3 {[%clk 0:00:05]} 46. Ned1 {[%clk 0:00:32]}  Rf5 {[%clk 0:00:02]} 47. b4 {[%clk 0:00:31]}  Kf7 {[%clk 0:00:03]} 48. a5 {[%clk 0:00:30]}  Ke6 {[%clk 0:00:02]} 49. Ne3 {[%clk 0:00:27]}  Rf8 {[%clk 0:00:02]} 50. Nc2 {[%clk 0:00:24]}  Kd7 {[%clk 0:00:03]} 51. Ne4 {[%clk 0:00:21]}  Rf1+ {[%clk 0:00:03]} 52. Kb2 {[%clk 0:00:20]}  Re2 {[%clk 0:00:03]} 53. Nc5+ {[%clk 0:00:20]}  Kc8 {[%clk 0:00:03]} 54. Kb3 {[%clk 0:00:20]}  Rb1+ {[%clk 0:00:03]} 55. Kc3 {[%clk 0:00:17]}  Rc1 {[%clk 0:00:03]} 56. Kb3 {[%clk 0:00:14]}  Rcxc2 {[%clk 0:00:03]} 57. a6 {[%clk 0:00:15]}  Rxc5 {[%clk 0:00:03]} 58. bxc5 {[%clk 0:00:15]}  Kb8 {[%clk 0:00:03]} 59. Kb4 {[%clk 0:00:15]}  Ka7 {[%clk 0:00:03]} 60. Ka5 {[%clk 0:00:14]}  Rb2 {[%clk 0:00:03]} 61. Ka4 {[%clk 0:00:15]}  Rb5 {[%clk 0:00:04]} 62. Ka3 {[%clk 0:00:15]}  Kxa6 {[%clk 0:00:05]} 63. Ka2 {[%clk 0:00:15]}  Ka5 {[%clk 0:00:05]} 64. Ka1 {[%clk 0:00:16]}  Rxc5 {[%clk 0:00:06]} 65. Ka2 {[%clk 0:00:17]}  Rb5 {[%clk 0:00:07]} 66. Ka1 {[%clk 0:00:18]}  c5 {[%clk 0:00:07]} 67. Ka2 {[%clk 0:00:18]}  c4 {[%clk 0:00:08]} 68. Ka3 {[%clk 0:00:16]}  c3 {[%clk 0:00:09]} 69. Ka2 {[%clk 0:00:17]}  c2 {[%clk 0:00:10]} 70. Ka3 {[%clk 0:00:17]}  c1=Q+ {[%clk 0:00:10]} 71. Ka2 {[%clk 0:00:18]}  Qb2# {[%clk 0:00:11]} 0-1


[Site "https://www.chess.com"]

[Event "Titled Tuesday Blitz November 14 Late 2023"]
[White "Klekowski, Maciej"]
[Black "Adewumi, Tanitoluwa"]
[WhiteFideId "1132717"]
[BlackFideId "30966396"]
[WhiteElo "2827"]
[BlackElo "2634"]
[Result "1-0"]
[Round "8"]
[TimeControl "180+1"]
[Date "2023.11.14"]
[WhiteClock "0:00:16"]
[BlackClock "0:00:04"]
[Board "25"]

1. c4 {[%clk 0:02:55]}  e5 {[%clk 0:02:58]} 2. g3 {[%clk 0:02:54]}  Nc6 {[%clk 0:02:57]} 3. Bg2 {[%clk 0:02:54]}  g6 {[%clk 0:02:57]} 4. Nc3 {[%clk 0:02:55]}  d6 {[%clk 0:02:56]} 5. e4 {[%clk 0:02:53]}  Be6 {[%clk 0:02:54]} 6. d3 {[%clk 0:02:53]}  h5 {[%clk 0:02:53]} 7. h3 {[%clk 0:02:51]}  h4 {[%clk 0:02:51]} 8. g4 {[%clk 0:02:51]}  f5 {[%clk 0:02:49]} 9. exf5 {[%clk 0:02:45]}  gxf5 {[%clk 0:02:50]} 10. gxf5 {[%clk 0:02:41]}  Bxf5 {[%clk 0:02:43]} 11. Nge2 {[%clk 0:02:41]}  Nf6 {[%clk 0:02:40]} 12. Nd5 {[%clk 0:02:19]}  Bh6 {[%clk 0:02:26]} 13. Be3 {[%clk 0:02:16]}  Rg8 {[%clk 0:02:10]} 14. Bf3 {[%clk 0:02:15]}  Bxe3 {[%clk 0:01:59]} 15. Nxe3 {[%clk 0:02:11]}  Bd7 {[%clk 0:01:57]} 16. Qb3 {[%clk 0:02:03]}  Qe7 {[%clk 0:01:42]} 17. Nd5 {[%clk 0:01:58]}  Nxd5 {[%clk 0:01:41]} 18. Bxd5 {[%clk 0:01:59]}  Rf8 {[%clk 0:01:42]} 19. Qxb7 {[%clk 0:01:48]}  Rb8 {[%clk 0:01:40]} 20. Qxc7 {[%clk 0:01:48]}  Rc8 {[%clk 0:01:24]} 21. Qb7 {[%clk 0:01:48]}  Rb8 {[%clk 0:01:22]} 22. Qa6 {[%clk 0:01:46]}  Nb4 {[%clk 0:01:07]} 23. Qxa7 {[%clk 0:01:45]}  Nxd3+ {[%clk 0:01:06]} 24. Kd2 {[%clk 0:01:27]}  Rxb2+ {[%clk 0:01:05]} 25. Kc3 {[%clk 0:01:27]}  Rxe2 {[%clk 0:00:15]} 26. Qb8+ {[%clk 0:01:04]}  Qd8 {[%clk 0:00:15]} 27. Qxd8+ {[%clk 0:01:05]}  Kxd8 {[%clk 0:00:16]} 28. Kxd3 {[%clk 0:01:04]}  Rfxf2 {[%clk 0:00:16]} 29. a4 {[%clk 0:01:01]}  Ra2 {[%clk 0:00:14]} 30. a5 {[%clk 0:00:58]}  Kc7 {[%clk 0:00:08]} 31. Kc3 {[%clk 0:00:55]}  Ba4 {[%clk 0:00:04]} 32. Rxa2 {[%clk 0:00:44]}  Rxa2 {[%clk 0:00:03]} 33. c5 {[%clk 0:00:45]}  Ra3+ {[%clk 0:00:03]} 34. Kb4 {[%clk 0:00:45]}  Rd3 {[%clk 0:00:03]} 35. Bc4 {[%clk 0:00:26]}  Rd4 {[%clk 0:00:02]} 36. cxd6+ {[%clk 0:00:27]}  Kxd6 {[%clk 0:00:02]} 37. Rg1 {[%clk 0:00:18]}  Bc6 {[%clk 0:00:03]} 38. Rg6+ {[%clk 0:00:18]}  Kd7 {[%clk 0:00:02]} 39. Kc5 {[%clk 0:00:19]}  Be4 {[%clk 0:00:02]} 40. Rg7+ {[%clk 0:00:19]}  Kd8 {[%clk 0:00:02]} 41. a6 {[%clk 0:00:18]}  Bf3 {[%clk 0:00:02]} 42. a7 {[%clk 0:00:18]}  Rd1 {[%clk 0:00:02]} 43. Rf7 {[%clk 0:00:17]}  Be4 {[%clk 0:00:01]} 44. Bb5 {[%clk 0:00:13]}  Kc8 {[%clk 0:00:01]} 45. Kb6 {[%clk 0:00:12]}  Rd6+ {[%clk 0:00:01]} 46. Kc5 {[%clk 0:00:12]}  Rd5+ {[%clk 0:00:01]} 47. Kc4 {[%clk 0:00:11]}  Rd4+ {[%clk 0:00:01]} 48. Kc5 {[%clk 0:00:11]}  Rd5+ {[%clk 0:00:02]} 49. Kb6 {[%clk 0:00:11]}  Rd6+ {[%clk 0:00:02]} 50. Ka5 {[%clk 0:00:12]}  Rd5 {[%clk 0:00:03]} 51. Rf8+ {[%clk 0:00:11]}  Kc7 {[%clk 0:00:03]} 52. a8=Q {[%clk 0:00:12]}  Rxb5+ {[%clk 0:00:03]} 53. Kxb5 {[%clk 0:00:12]}  Bxa8 {[%clk 0:00:03]} 54. Rxa8 {[%clk 0:00:13]}  Kd6 {[%clk 0:00:03]} 55. Ra4 {[%clk 0:00:13]}  Kd5 {[%clk 0:00:03]} 56. Rxh4 {[%clk 0:00:14]}  e4 {[%clk 0:00:04]} 57. Rh8 {[%clk 0:00:13]}  e3 {[%clk 0:00:05]} 58. Re8 {[%clk 0:00:13]}  e2 {[%clk 0:00:05]} 59. h4 {[%clk 0:00:14]}  Kd4 {[%clk 0:00:05]} 60. Rxe2 {[%clk 0:00:15]}  Kd5 {[%clk 0:00:04]} 61. Re8 {[%clk 0:00:16]} 1-0


[Site "https://www.chess.com"]

[Event "Titled Tuesday Blitz November 14 Late 2023"]
[White "Ghasi, Ameet K"]
[Black "angelgab3"]
[WhiteFideId "409200"]
[WhiteElo "2802"]
[BlackElo "2580"]
[Result "1-0"]
[Round "8"]
[TimeControl "180+1"]
[Date "2023.11.14"]
[WhiteClock "0:00:25"]
[BlackClock "0:00:01"]
[Board "26"]

1. g3 {[%clk 0:03:00]}  d5 {[%clk 0:02:59]} 2. Bg2 {[%clk 0:03:01]}  Nf6 {[%clk 0:03:00]} 3. d3 {[%clk 0:03:02]}  c5 {[%clk 0:03:01]} 4. h3 {[%clk 0:03:02]}  Nc6 {[%clk 0:03:01]} 5. Nf3 {[%clk 0:03:00]}  e6 {[%clk 0:03:01]} 6. O-O {[%clk 0:03:00]}  b6 {[%clk 0:03:02]} 7. Re1 {[%clk 0:03:00]}  Bb7 {[%clk 0:03:02]} 8. Nbd2 {[%clk 0:02:59]}  Be7 {[%clk 0:03:03]} 9. e4 {[%clk 0:03:00]}  Qc7 {[%clk 0:03:03]} 10. c3 {[%clk 0:02:59]}  h6 {[%clk 0:03:04]} 11. a3 {[%clk 0:02:59]}  g5 {[%clk 0:03:04]} 12. b4 {[%clk 0:02:56]}  g4 {[%clk 0:03:02]} 13. hxg4 {[%clk 0:02:54]}  O-O-O {[%clk 0:02:57]} 14. exd5 {[%clk 0:02:47]}  Nxd5 {[%clk 0:02:47]} 15. bxc5 {[%clk 0:02:36]}  Bxc5 {[%clk 0:02:40]} 16. Ne4 {[%clk 0:02:33]}  Be7 {[%clk 0:02:10]} 17. c4 {[%clk 0:02:32]}  Nf6 {[%clk 0:02:10]} 18. Bf4 {[%clk 0:02:20]}  Qd7 {[%clk 0:02:08]} 19. Ne5 {[%clk 0:02:16]}  Nxe5 {[%clk 0:02:03]} 20. Bxe5 {[%clk 0:02:17]}  Nxe4 {[%clk 0:02:03]} 21. Bxe4 {[%clk 0:02:16]}  Rhg8 {[%clk 0:02:00]} 22. d4 {[%clk 0:01:51]}  f6 {[%clk 0:01:47]} 23. Bf4 {[%clk 0:01:47]}  Qxd4 {[%clk 0:01:26]} 24. Bxb7+ {[%clk 0:01:14]}  Kxb7 {[%clk 0:01:27]} 25. Qf3+ {[%clk 0:01:14]}  Ka6 {[%clk 0:01:26]} 26. Rad1 {[%clk 0:01:14]}  Qxc4 {[%clk 0:01:21]} 27. Rc1 {[%clk 0:01:14]}  Qd3 {[%clk 0:01:13]} 28. Re3 {[%clk 0:01:03]}  Qd5 {[%clk 0:00:56]} 29. Qe2+ {[%clk 0:01:02]}  Qb5 {[%clk 0:00:57]} 30. Rc4 {[%clk 0:00:48]}  Ka5 {[%clk 0:00:08]} 31. Rxe6 {[%clk 0:00:45]}  Bc5 {[%clk 0:00:06]} 32. Bd2+ {[%clk 0:00:45]}  Rxd2 {[%clk 0:00:04]} 33. Qxd2+ {[%clk 0:00:46]}  Ka6 {[%clk 0:00:05]} 34. Qc2 {[%clk 0:00:35]}  Rd8 {[%clk 0:00:02]} 35. Rxc5 {[%clk 0:00:25]}  Qxc5 {[%clk 0:00:01]} 36. Qxc5 {[%clk 0:00:25]} 1-0


[Site "https://www.chess.com"]